lending/lending_fUSD_20260330
["ID","MTS","AMOUNT","RATE_DAILY","PERIOD"]
[419080080,1774845041510,-236.34,9.748e-05,2]
[419080081,1774845041519,-585.36,9.774e-05,2]
[419080082,1774845041528,-523.45538513,9.811e-05,2]
[419080083,1774845041540,-1680.0,9.82e-05,2]
[419080084,1774845041550,-464.03,9.83e-05,2]
[419080085,1774845041559,-420.0,9.913e-05,2]
[419080086,1774845041569,-500.0,9.948e-05,2]
[419080087,1774845041579,-378.0,9.966e-05,2]
[419080088,1774845041588,-701.0,9.976e-05,2]
[419080089,1774845041597,-243.44762194,9.986e-05,2]
[419080090,1774845041607,-227.707439,9.997e-05,2]
[419080091,1774845041616,-65828.53572062,0.0001,4]
[419080092,1774845041625,-500.0,0.0001,2]
[419080093,1774845041635,-500.0,0.0001,2]
[419080094,1774845041644,-200.0,0.0001,2]
[419080095,1774845041653,-500.0,0.0001,2]
[419080096,1774845041663,-500.0,0.0001,2]
[419080097,1774845041672,-500.0,0.0001,2]
[419080098,1774845041681,-500.0,0.0001,2]
[419080099,1774845041691,-500.0,0.0001,2]
[419080100,1774845042048,-500.0,0.0001,2]
[419080101,1774845042078,-500.0,0.0001,2]
[419080102,1774845042088,-500.0,0.0001,2]
[419080103,1774845042099,-500.0,0.0001,2]
[419080104,1774845042109,-500.0,0.0001,2]
[419080105,1774845042119,-500.0,0.0001,2]
[419080106,1774845042130,-500.0,0.0001,2]
[419080107,1774845042140,-500.0,0.0001,2]
[419080108,1774845042150,-500.0,0.0001,2]
[419080109,1774845042161,-500.0,0.0001,2]
[419080110,1774845042172,-383.83703057,0.0001,2]
[419080111,1774845042182,-500.0,0.0001,2]
[419080112,1774845042191,-500.0,0.0001,2]
[419080113,1774845042200,-151.0,0.0001,2]
[419080114,1774845042209,-500.0,0.0001,2]
[419080115,1774845042219,-151.0,0.0001,2]
[419080116,1774845042230,-500.0,0.0001,2]
[419080117,1774845042240,-151.0,0.0001,2]
[419080118,1774845042251,-500.0,0.0001,2]
[419080119,1774845042260,-151.0,0.0001,2]
[419080120,1774845042270,-151.0,0.0001,2]
[419080121,1774845042281,-151.0,0.0001,2]
[419080122,1774845042291,-151.0,0.0001,2]
[419080123,1774845042300,-151.0,0.0001,2]
[419080124,1774845042309,-151.0,0.0001,2]
[419080125,1774845042318,-151.0,0.0001,2]
[419080126,1774845042327,-151.0,0.0001,2]
[419080127,1774845042336,-151.0,0.0001,2]
[419080128,1774845042345,-151.0,0.0001,2]
[419080129,1774845042355,-151.0,0.0001,2]
[419080130,1774845042365,-151.0,0.0001,2]
[419080131,1774845042374,-151.0,0.0001,2]
[419080132,1774845042384,-151.0,0.0001,2]
[419080133,1774845042393,-151.0,0.0001,2]
[419080134,1774845042402,-151.0,0.0001,2]
[419080135,1774845042412,-151.0,0.0001,2]
[419080136,1774845042421,-151.0,0.0001,2]
[419080137,1774845042430,-1386.78395259,0.0001,2]
[419080138,1774845042440,-151.0,0.0001,2]
[419080139,1774845042449,-151.0,0.0001,2]
[419080140,1774845042460,-151.0,0.0001,2]
[419080141,1774845042469,-151.0,0.0001,2]
[419080142,1774845042479,-151.0,0.0001,2]
[419080144,1774845042488,-151.0,0.0001,2]
[419080146,1774845042497,-151.0,0.0001,2]
[419080148,1774845042507,-151.0,0.0001,2]
[419080149,1774845042516,-151.0,0.0001,2]
[419080150,1774845042525,-151.0,0.0001,2]
[419080151,1774845042534,-151.0,0.0001,2]
[419080152,1774845042544,-151.0,0.0001,2]
[419080153,1774845042553,-3422.40500017,0.0001,2]
[419080154,1774845042563,-150.0,0.0001,2]
[419080155,1774845042572,-150.0,0.0001,2]
[419080156,1774845042582,-152.59354707,0.0001,2]
[419080157,1774845042592,-351.45031888,0.0001,7]
[419080158,1774845042601,-1576.47,0.0001,2]
[419080159,1774845042611,-3939.11,0.00010039,2]
[419080160,1774845042620,-585.36,0.00010048,2]
[419080161,1774845042629,-511.33110945,0.00010081,2]
[419080162,1774845042639,-261.50854217,0.000101,2]
[419080163,1774845042648,-1025.01,0.0001012,2]
[419080164,1774845042658,-9187.09,0.00010125,2]
[419080165,1774845042667,-500.0,0.00010135,2]
[419080166,1774845042676,-200.0,0.00010142,2]
[419080167,1774845042686,-293.68,0.00010144,2]
[419080168,1774845042696,-151.0,0.0001021,2]
[419080169,1774845042705,-151.0,0.0001021,2]
[419080170,1774845042715,-151.0,0.00010221,2]
[419080171,1774845042724,-500.0,0.00010222,2]
[419080172,1774845042733,-295.04,0.00010238,2]
[419080173,1774845042743,-236.34,0.00010261,2]
[419080174,1774845042752,-1576.47,0.00010313,2]
[419080175,1774845042762,-585.36,0.00010322,2]
[419080176,1774845042772,-255.0,0.00010338,2]
[419080177,1774845042781,-500.0,0.00010384,2]
[419080178,1774845042791,-500.0,0.00010474,2]
[419080179,1774845042800,-621.86735373,0.00010474,2]
[419080180,1774845042809,-500.0,0.00010474,2]
[419080181,1774845042819,-500.0,0.00010474,2]
[419080182,1774845042829,-322.0307187,0.00010474,2]
[419080183,1774845042838,-500.0,0.00010474,2]
[419080184,1774845042847,-500.0,0.00010474,2]
[419080185,1774845042857,-29715.35,0.00010475,2]
[419080186,1774845042866,-9999.99,0.00010475,2]
[419080187,1774845042876,-13215.7,0.00010475,2]
[419080188,1774845042885,-29999.99,0.00010475,2]
[419080189,1774845042895,-421.60378826,0.00010496,2]
[419080190,1774845042904,-250.0,0.00010508,2]
[419080191,1774845042914,-200.0,0.00010548,2]
[419080192,1774845042925,-1386.7839526,0.00010548,2]
[419080193,1774845042935,-152.82264291,0.00010548,2]
[419080194,1774845042944,-4881.99,0.00010579,2]
[419080195,1774845042954,-585.36,0.00010596,2]
[419080196,1774845042963,-1576.47,0.00010625,2]
[419080197,1774845042973,-270.09856999,0.000107,2]
[419080198,1774845042983,-1003.81201125,0.0001075,30]
[419080199,1774845042994,-236.34,0.00010774,2]
[419080200,1774845043004,-14090.3931388,0.00010801,2]
[419080201,1774845043013,-2351.0,0.00010802,2]
[419080202,1774845043023,-585.40660297,0.0001087,2]
[419080203,1774845043032,-2803.95268804,0.000109,2]
[419080204,1774845043042,-2803.95268797,0.000109,2]
[419080205,1774845043052,-327.0,0.00010904,2]
[419080206,1774845043062,-997.6269511,0.00010919,2]
[419080207,1774845043072,-1576.47,0.00010938,2]
[419080208,1774845043081,-500.0,0.00010959,2]
[419080209,1774845043091,-166.66,0.00010959,2]
[419080210,1774845043101,-150.0,0.00010959,2]
[419080211,1774845043111,-157.8,0.00010959,2]
[419080212,1774845043120,-168.3696283,0.00010959,2]
[419080213,1774845043130,-5531.65655379,0.00011,2]
[419080214,1774845043140,-196.8499,0.00011,7]
[419080215,1774845043149,-500.0,0.00011041,2]
[419080216,1774845043159,-166.66,0.00011068,2]
[419080217,1774845043169,-200.0,0.00011096,2]
[419080218,1774845043179,-18358.23144477,0.00011099,2]
[419080219,1774845043189,-13215.00892709,0.00011099,2]
[419080220,1774845043199,-13215.00892706,0.00011099,2]
[419080221,1774845043208,-13215.00892706,0.00011099,2]
[419080222,1774845043218,-29288.475433,0.00011153,2]
[419080223,1774845043228,-166.66,0.00011178,2]
[419080224,1774845043237,-2803.95268797,0.00011186,2]
[419080225,1774845043247,-1576.47,0.0001125,2]
[419080226,1774845043257,-236.34,0.00011287,2]
[419080227,1774845043266,-166.66,0.00011288,2]
[419080228,1774845043275,-791.611826,0.00011331,2]
[419080229,1774845043286,-1792.962876,0.00011371,2]
[419080230,1774845043295,-188.760552,0.00011371,2]
[419080231,1774845043304,-433.0,0.00011372,2]
[419080232,1774845043314,-983.540294,0.00011382,2]
[419080233,1774845043323,-5623.89569701,0.00011382,2]
[419080239,1774845043501,-474.00072649,0.00011382,2]
[419080240,1774845043517,-2756.07089499,0.00011382,2]
[419080241,1774845043532,-6887.33342351,0.00011382,2]
[419080242,1774845043542,-263.870609,0.00011382,2]
[419080243,1774845043552,-202.742815,0.00011389,2]
[419080244,1774845043562,-248.618926,0.00011389,2]
[419080246,1774845043573,-166.66,0.00011397,2]
[419080248,1774845043582,-500.0,0.00011452,2]
[419080250,1774845043592,-8865.25350702,0.000115,2]
[419080252,1774845043601,-13215.00892706,0.000115,2]
[419080254,1774845043611,-166.66,0.00011507,2]
[419080256,1774845043621,-2618.75,0.00011507,2]
[419080257,1774845043630,-6535.1422138,0.0001151,2]
[419080259,1774845043639,-1576.47,0.00011562,2]
[419080261,1774845043649,-1500.0,0.00011588,2]
[419080263,1774845043658,-18358.23144477,0.00011603,2]
[419080265,1774845043668,-2945.2745739,0.00011621,2]
[419080267,1774845043677,-200.0,0.00011644,2]
[419080269,1774845043686,-168.24,0.00011738,2]
[419080271,1774845043696,-236.34,0.000118,2]
[419080273,1774845043705,-500.0,0.00011842,2]
[419080275,1774845043714,-500.0,0.00011842,2]
[419080277,1774845043724,-1576.47,0.00011875,2]
[419080278,1774845043734,-3292.0,0.00011882,2]
[419080280,1774845043743,-535.71,0.00011941,2]
[419080282,1774845043753,-14090.3931388,0.00012047,2]
[419080284,1774845043762,-306.0,0.00012055,2]
[419080286,1774845043773,-657.1795873,0.00012082,2]
[419080288,1774845043782,-2803.95268797,0.00012129,2]
[419080290,1774845043791,-196.73982554,0.00012163,2]
[419080292,1774845043801,-224.8455149,0.00012163,2]
[419080294,1774845043811,-351.32111704,0.00012163,2]
[419080296,1774845043820,-200.0,0.00012192,2]
[419080298,1774845043830,-4384.0,0.000122,2]
[419080300,1774845043839,-18358.23144477,0.00012217,2]
[419080301,1774845043848,-466.69,0.00012219,2]
[419080303,1774845043858,-13215.00892706,0.00012233,2]
[419080305,1774845043867,-997.6269511,0.00012284,2]
[419080307,1774845043877,-7452.63,0.00012312,2]
[419080309,1774845043886,-236.34,0.00012313,2]
[419080311,1774845043896,-151.0,0.00012369,2]
[419080313,1774845043905,-151.0,0.00012369,2]
[419080315,1774845043915,-7432.76,0.00012369,2]
[419080317,1774845043925,-1102.45109965,0.0001239,2]
[419080319,1774845043934,-501.12506457,0.0001239,2]
[419080321,1774845043944,-293.68,0.0001244,2]
[419080323,1774845043955,-258.3326,0.000125,12]
[419080324,1774845043964,-736.0,0.00012509,2]
[419080325,1774845043974,-247.68819334,0.00012534,2]
[419080326,1774845043984,-227.707439,0.00012612,2]
[419080327,1774845043993,-2000.0,0.000127,2]
[419080328,1774845044002,-227.707439,0.00012712,2]
[419080329,1774845044012,-583.14090577,0.00012716,2]
[419080330,1774845044021,-151.88410035,0.00012739,2]
[419080331,1774845044030,-200.0,0.0001274,2]
[419080332,1774845044040,-308.47,0.00012749,2]
[419080333,1774845044049,-497.69,0.00012774,2]
[419080334,1774845044058,-500.0,0.00012795,2]
[419080335,1774845044068,-500.0,0.00012795,2]
[419080336,1774845044077,-236.34,0.00012826,2]
[419080337,1774845044097,-18358.23144477,0.00012831,2]
[419080338,1774845044108,-273.81,0.00012877,2]
[419080339,1774845044118,-578.20924308,0.00012882,2]
[419080340,1774845044128,-500.0,0.00012882,2]
[419080341,1774845044138,-151.0,0.00012882,2]
[419080342,1774845044148,-9552.16786547,0.00012882,2]
[419080343,1774845044157,-500.0,0.00012882,2]
[419080344,1774845044167,-735.16880261,0.00012882,2]
[419080345,1774845044177,-500.0,0.00012882,2]
[419080346,1774845044186,-500.0,0.00012882,2]
[419080347,1774845044196,-500.0,0.00012882,2]
[419080348,1774845044206,-209.40437684,0.00012882,2]
[419080349,1774845044215,-500.0,0.00012882,2]
[419080350,1774845044225,-500.0,0.00012882,2]
[419080351,1774845044234,-500.0,0.00012882,2]
[419080352,1774845044243,-500.0,0.00012882,2]
[419080353,1774845044253,-500.0,0.00012882,2]
[419080354,1774845044262,-500.0,0.00012882,2]
[419080355,1774845044272,-500.0,0.00012882,2]
[419080356,1774845044282,-1428.38747117,0.00012882,2]
[419080357,1774845044291,-209.40437684,0.00012882,2]
[419080358,1774845044301,-500.0,0.00012882,2]
[419080359,1774845044310,-500.0,0.00012882,2]
[419080360,1774845044319,-500.0,0.00012882,2]
[419080361,1774845044329,-500.0,0.00012882,2]
[419080362,1774845044338,-500.0,0.00012882,2]
[419080363,1774845044347,-500.0,0.00012882,2]
[419080364,1774845044358,-500.0,0.00012882,2]
[419080365,1774845044367,-500.0,0.00012882,2]
[419080366,1774845044377,-500.0,0.00012882,2]
[419080367,1774845044387,-500.0,0.00012882,2]
[419080368,1774845044397,-500.0,0.00012882,2]
[419080369,1774845044407,-500.0,0.00012882,2]
[419080370,1774845044416,-500.0,0.00012882,2]
[419080371,1774845044426,-500.0,0.00012882,2]
[419080372,1774845044436,-500.0,0.00012882,2]
[419080373,1774845044446,-500.0,0.00012882,2]
[419080374,1774845044456,-500.0,0.00012882,2]
[419080375,1774845044465,-500.0,0.00012882,2]
[419080376,1774845044475,-500.0,0.00012882,2]
[419080377,1774845044484,-500.0,0.00012882,2]
[419080378,1774845044495,-151.0,0.00012882,2]
[419080379,1774845044505,-500.0,0.00012882,2]
[419080380,1774845044516,-500.0,0.00012882,2]
[419080381,1774845044525,-200.0,0.00012882,2]
[419080382,1774845044535,-693.3919763,0.00012882,2]
[419080383,1774845044544,-250.0,0.00012882,2]
[419080384,1774845044554,-250.0,0.00012882,2]
[419080385,1774845044564,-250.0,0.00012882,2]
[419080386,1774845044573,-174.61919141,0.00012882,2]
[419080387,1774845044583,-250.0,0.00012882,2]
[419080388,1774845044600,-250.0,0.00012882,2]
[419080389,1774845044610,-250.0,0.00012882,2]
[419080390,1774845044620,-279.9045709,0.00012882,2]
[419080391,1774845044630,-250.0,0.00012882,2]
[419080392,1774845044640,-250.0,0.00012882,2]
[419080393,1774845044650,-250.0,0.00012882,2]
[419080394,1774845044659,-250.0,0.00012882,2]
[419080395,1774845044670,-250.0,0.00012882,2]
[419080396,1774845044680,-262.90206542,0.00012882,2]
[419080397,1774845044689,-209.40437685,0.00012882,2]
[419080398,1774845044699,-743.50770149,0.00012882,2]
[419080399,1774845044709,-500.0,0.00012882,2]
[419080400,1774845044719,-500.0,0.00012882,2]
[419080401,1774845044729,-500.0,0.00012882,2]
[419080402,1774845044738,-500.0,0.00012882,2]
[419080403,1774845044748,-500.0,0.00012882,2]
[419080404,1774845044757,-426.10763238,0.00012888,2]
[419080405,1774845044767,-5534.0,0.000129,3]
[419080406,1774845044777,-160.0,0.00012909,2]
[419080407,1774845044787,-160.0,0.00012909,2]
[419080408,1774845044797,-9905.5980765,0.00012937,2]
[419080409,1774845044806,-500.0,0.00012937,2]
[419080410,1774845044816,-151.0,0.00012937,2]
[419080411,1774845044826,-272.62944185,0.00012937,2]
[419080412,1774845044837,-2000.0,0.00012959,2]
[419080413,1774845044847,-13215.00892706,0.00012967,2]
[419080414,1774845044856,-3891.20685866,0.00012987,2]
[419080415,1774845044866,-155.05669853,0.00012987,2]
[419080416,1774845044876,-10272.10520533,0.00012992,2]
[419080417,1774845044886,-500.0,0.00012992,2]
[419080418,1774845044896,-151.0,0.00012992,2]
[419080419,1774845044906,-282.71673119,0.00012992,2]
[419080420,1774845044915,-11392.03144216,0.00012999,2]
[419080421,1774845044924,-4513.6290482,0.00013,2]
[419080422,1774845044934,-250.0,0.00013,2]
[419080423,1774845044945,-182.05547605,0.00013037,2]
[419080424,1774845044954,-486.84,0.00013044,2]
[419080425,1774845044964,-497.70563321,0.00013044,2]
[419080426,1774845044974,-10652.17309792,0.00013047,2]
[419080427,1774845044983,-500.0,0.00013047,2]
[419080428,1774845044993,-151.0,0.00013047,2]
[419080429,1774845045004,-293.17725025,0.00013047,2]
[419080430,1774845045014,-4609.0,0.0001307,2]
[419080431,1774845045024,-2803.95268797,0.00013071,2]
[419080432,1774845045033,-48004.48,0.00013077,2]
[419080433,1774845045043,-151.0,0.00013077,2]
[419080434,1774845045053,-361.366268,0.00013077,2]
[419080435,1774845045062,-151.0,0.00013077,2]
[419080436,1774845045071,-361.366268,0.00013077,2]
[419080437,1774845045082,-151.0,0.00013077,2]
[419080438,1774845045092,-361.366268,0.00013077,2]
[419080439,1774845045102,-151.0,0.00013077,2]
[419080440,1774845045117,-361.366268,0.00013077,2]
[419080441,1774845045127,-151.0,0.00013077,2]
[419080442,1774845045137,-250.860871,0.00013077,2]
[419080443,1774845045147,-151.0,0.00013077,2]
[419080444,1774845045157,-151.0,0.00013077,2]
[419080445,1774845045168,-151.0,0.00013077,2]
[419080446,1774845045178,-151.0,0.00013077,2]
[419080447,1774845045189,-151.0,0.00013077,2]
[419080448,1774845045199,-647.839142,0.00013077,2]
[419080449,1774845045208,-647.839142,0.00013077,2]
[419080450,1774845045219,-647.839142,0.00013077,2]
[419080451,1774845045229,-647.839142,0.00013077,2]
[419080452,1774845045239,-151.0,0.00013077,2]
[419080453,1774845045249,-151.0,0.00013077,2]
[419080454,1774845045260,-247.68819331,0.00013095,2]
[419080455,1774845045270,-2000.0,0.000131,2]
[419080456,1774845045280,-240.34897015,0.00013102,2]
[419080457,1774845045290,-500.0,0.00013102,2]
[419080458,1774845045301,-151.0,0.00013102,2]
[419080459,1774845045311,-304.02480851,0.00013102,2]
[419080460,1774845045321,-3188.0,0.00013117,5]
[419080461,1774845045331,-500.0,0.00013157,2]
[419080462,1774845045341,-151.0,0.00013157,2]
[419080463,1774845045351,-315.27372642,0.00013157,2]
[419080464,1774845045362,-500.0,0.00013212,2]
[419080465,1774845045372,-151.0,0.00013212,2]
[419080466,1774845045382,-326.9388543,0.00013212,2]
[419080467,1774845045392,-1000.0,0.00013217,2]
[419080468,1774845045402,-152.0,0.0001325,3]
[419080469,1774845045412,-250.63122979,0.0001326,2]
[419080470,1774845045422,-500.0,0.00013267,2]
[419080471,1774845045433,-151.0,0.00013267,2]
[419080472,1774845045443,-339.03559191,0.00013267,2]
[419080473,1774845045452,-1000.0,0.00013287,2]
[419080474,1774845045463,-14090.3931388,0.00013294,2]
[419080475,1774845045473,-500.0,0.00013322,2]
[419080476,1774845045483,-151.0,0.00013322,2]
[419080477,1774845045493,-448.35079142,0.00013326,2]
[419080478,1774845045503,-236.34,0.00013339,2]
[419080479,1774845045513,-1000.0,0.0001336,2]
[419080481,1774845045523,-500.0,0.00013377,2]
[419080482,1774845045532,-151.0,0.00013377,2]
[419080484,1774845045543,-293.68,0.00013387,2]
[419080485,1774845045553,-1000.0,0.00013418,2]
[419080486,1774845045562,-3240.0,0.00013425,2]
[419080487,1774845045572,-151.0,0.0001343,2]
[419080488,1774845045582,-217.15233878,0.0001343,2]
[419080489,1774845045592,-257.97768136,0.0001343,2]
[419080490,1774845045603,-1481.23780761,0.0001343,2]
[419080491,1774845045614,-200.0,0.0001343,2]
[419080492,1774845045624,-181.08010149,0.0001343,2]
[419080493,1774845045634,-292.15408743,0.0001343,2]
[419080494,1774845045645,-771.01748645,0.0001343,2]
[419080495,1774845045655,-500.0,0.00013432,2]
[419080496,1774845045665,-151.0,0.00013432,2]
[419080497,1774845045675,-18358.23144477,0.00013444,2]
[419080498,1774845045685,-455.61568718,0.00013451,7]
[419080499,1774845045695,-455.61568718,0.00013451,7]
[419080500,1774845045705,-227.80784359,0.00013451,7]
[419080501,1774845045715,-152.0,0.00013452,4]
[419080502,1774845045726,-1000.0,0.00013459,2]
[419080503,1774845045735,-1000.0,0.00013463,2]
[419080504,1774845045745,-392.01,0.00013467,2]
[419080505,1774845045755,-1000.0,0.00013526,2]
[419080506,1774845045765,-3313.0,0.00013571,5]
[419080507,1774845045775,-3257.0,0.00013571,5]
[419080508,1774845045784,-2468.0,0.00013583,2]
[419080509,1774845045795,-500.0,0.00013589,2]
[419080510,1774845045805,-5534.0,0.000136,5]
[419080511,1774845045815,-997.6269511,0.0001365,2]
[419080512,1774845045825,-152.0,0.00013654,5]
[419080513,1774845045835,-247.68819331,0.00013656,2]
[419080514,1774845045844,-1000.0,0.00013662,2]
[419080515,1774845045855,-227.707439,0.00013696,2]
[419080516,1774845045865,-435.19266158,0.00013698,2]
[419080517,1774845045875,-490.0,0.00013698,2]
[419080518,1774845045884,-586.09491028,0.00013698,2]
[419080519,1774845045895,-490.0,0.00013698,2]
[419080520,1774845045905,-500.0,0.00013698,2]
[419080521,1774845045914,-712.2,0.00013698,2]
[419080522,1774845045924,-712.2,0.00013698,2]
[419080523,1774845045934,-712.2,0.00013698,2]
[419080524,1774845045944,-712.2,0.00013698,2]
[419080525,1774845045954,-712.2,0.00013698,2]
[419080526,1774845045964,-712.2,0.00013698,2]
[419080527,1774845045973,-500.0,0.00013698,2]
[419080528,1774845045983,-500.0,0.00013699,2]
[419080529,1774845045992,-500.0,0.00013699,2]
[419080530,1774845046002,-500.0,0.00013699,2]
[419080531,1774845046011,-500.0,0.00013699,2]
[419080532,1774845046020,-500.0,0.00013699,2]
[419080533,1774845046030,-500.0,0.00013699,2]
[419080534,1774845046039,-500.0,0.00013699,2]
[419080535,1774845046048,-349.73761398,0.00013699,2]
[419080536,1774845046059,-150.0,0.00013699,2]
[419080537,1774845046069,-150.0,0.00013699,2]
[419080538,1774845046079,-150.0,0.00013699,2]
[419080562,1774845046600,-150.0,0.00013699,2]
[419080564,1774845046612,-150.0,0.00013699,2]
[419080566,1774845046621,-150.0,0.00013699,2]
[419080568,1774845046631,-150.0,0.00013699,2]
[419080570,1774845046641,-150.0,0.00013699,2]
[419080571,1774845046650,-200.0,0.00013699,2]
[419080573,1774845046659,-16358.45,0.00013699,2]
[419080575,1774845046669,-1646.9,0.00013699,2]
[419080577,1774845046678,-500.0,0.00013699,2]
[419080578,1774845046687,-153.0,0.00013699,2]
[419080580,1774845046698,-153.0,0.00013699,2]
[419080582,1774845046706,-242.8527761,0.00013699,2]
[419080584,1774845046715,-466.02993293,0.00013699,2]
[419080585,1774845046724,-500.0,0.000137,2]
[419080587,1774845046733,-500.0,0.000137,2]
[419080589,1774845046742,-174.67,0.000137,2]
[419080591,1774845046751,-174.67,0.000137,2]
[419080592,1774845046760,-174.67,0.000137,2]
[419080594,1774845046769,-13215.00892706,0.000137,2]
[419080596,1774845046778,-1000.0,0.00013728,2]
[419080598,1774845046787,-1252.0,0.00013759,2]
[419080600,1774845046802,-2000.0,0.000138,2]
[419080602,1774845046813,-392.01270482,0.00013805,2]
[419080604,1774845046823,-1000.0,0.0001385,2]
[419080606,1774845046834,-236.34,0.00013852,2]
[419080607,1774845046844,-152.0,0.00013857,6]
[419080608,1774845046854,-1000.0,0.00013859,2]
[419080609,1774845046865,-150.0,0.00013872,2]
[419080610,1774845046877,-152.53,0.00013916,2]
[419080611,1774845046888,-1600.0,0.00013916,2]
[419080612,1774845046899,-1230.94,0.00013916,2]
[419080613,1774845046909,-150.0,0.00013973,2]
[419080614,1774845046919,-150.0,0.00013973,2]
[419080615,1774845046930,-150.0,0.00013973,2]
[419080616,1774845046941,-150.0,0.00013973,2]
[419080617,1774845046951,-150.0,0.00013973,2]
[419080618,1774845046963,-150.0,0.00013973,2]
[419080619,1774845046975,-151.0,0.00013978,2]
[419080620,1774845046988,-1536.04360649,0.00013978,2]
[419080621,1774845046999,-200.0,0.00013978,2]
[419080622,1774845047010,-187.78006525,0.00013978,2]
[419080623,1774845047022,-799.54513345,0.00013978,2]
[419080624,1774845047033,-1500.0,0.00014,2]
[419080625,1774845047044,-339.0183,0.00014,17]
[419080626,1774845047055,-150.0,0.00014008,2]
[419080627,1774845047067,-2803.95268797,0.00014014,2]
[419080628,1774845047079,-651.8,0.00014028,2]
[419080629,1774845047090,-1229.66,0.00014028,2]
[419080630,1774845047101,-1000.0,0.00014031,2]
[419080631,1774845047110,-150.0,0.00014035,2]
[419080632,1774845047122,-18358.23144477,0.00014058,2]
[419080633,1774845047133,-152.0,0.00014059,7]
[419080634,1774845047144,-1000.0,0.00014092,2]
[419080635,1774845047155,-150.0,0.00014093,2]
[419080636,1774845047165,-150.0,0.00014131,2]
[419080637,1774845047176,-1000.0,0.00014144,2]
[419080638,1774845047187,-1000.0,0.00014151,2]
[419080639,1774845047198,-712.2,0.00014188,2]
[419080640,1774845047208,-2156.0,0.000142,2]
[419080641,1774845047218,-150.0,0.00014216,2]
[419080642,1774845047227,-247.68819331,0.00014217,2]
[419080643,1774845047237,-1000.0,0.00014219,2]
[419080644,1774845047248,-312.0054718,0.00014222,2]
[419080645,1774845047258,-150.0,0.00014238,2]
[419080646,1774845047267,-150.0,0.00014238,2]
[419080647,1774845047278,-150.0,0.00014238,2]
[419080648,1774845047288,-150.0,0.00014238,2]
[419080649,1774845047301,-150.0,0.00014238,2]
[419080650,1774845047311,-150.0,0.00014238,2]
[419080651,1774845047321,-150.0,0.00014238,2]
[419080652,1774845047331,-150.0,0.00014238,2]
[419080653,1774845047340,-272.0,0.00014238,2]
[419080654,1774845047350,-150.0,0.00014242,2]
[419080655,1774845047366,-1262.0,0.00014242,2]
[419080656,1774845047377,-925.0,0.00014242,2]
[419080657,1774845047388,-1216.0,0.00014242,2]
[419080658,1774845047398,-621.0,0.00014242,2]
[419080659,1774845047409,-1045.0,0.00014242,2]
[419080660,1774845047419,-1000.0,0.00014245,2]
[419080661,1774845047431,-150.0,0.00014247,2]
[419080662,1774845047441,-150.0,0.00014247,2]
[419080663,1774845047451,-150.0,0.00014247,2]
[419080664,1774845047462,-150.0,0.00014247,2]
[419080665,1774845047473,-150.0,0.00014247,2]
[419080666,1774845047483,-150.0,0.00014247,2]
[419080667,1774845047495,-371.11945312,0.00014248,2]
[419080668,1774845047506,-1000.0,0.00014248,2]
[419080669,1774845047517,-152.0,0.00014262,8]
[419080670,1774845047528,-361.366268,0.00014278,2]